Workbook

Sheet Org Chart
AI4: Administration & Finance
AI5: Vice President
F6: The University of Montana-Missoula | AI6: Duringer, Robert
F7: Facilities Services | AJ7: 243-4680
F8: Organizational Chart
AI11: Facilities Services Director
AI12: Director | AQ12: Administrative Secretary
AI13: Jesse, Hugh | AQ13: Kiernan, Leigh
AJ14: 243-2385 | AK14: 080900 | AL14: 1 | AM14: FTE | AR14: 243-2788
AI15: =SUM(AL14+AQ15+AI24+AZ24+BH24+BP24+Q24+Y87) -> 218 | AJ15: Employees | AL15: =SUM(AL14+AT15+AL24+BC24+BK24+BS24+T24+AB87) -> 168.75 | AM15: FTE | AQ15: 1 | AR15: Employee | AS15: 081700 | AT15: 1 | AU15: FTE
Q20: Associate Director | AI20: Assistant Director | AZ20: Associate Director | BH20: Assistant Director | BP20: Associate Director
Q21: Custodial, Grounds, Labor, Recycling/Rental Housing | AI21: Maintenance | AQ21: Program Coordinator | AZ21: Planning & Construction | BH21: Engineering & Utilities | BP21: Fiscal Operations for Facilities Services
Q22: Michaud, Gerald "Frenchy" | AI22: O'Neill, Gene | AZ22: Krebsbach, Kevin | BH22: Laura Howe | BP22: Schalk, Peggy
R23: 243-2420 | S23: 086900 | T23: 1 | U23: FTE | AJ23: 243-6129 | AK23: 084000 | AL23: 1 | AM23: FTE | AQ23: Florin, James | AS23: 081550 | AT23: 1 | AU23: FTE | BA23: 243-2095 | BB23: 084500 | BC23: 1 | BD23: FTE | BI23: 243-2127 | BJ23: 081210 | BK23: 1 | BL23: FTE | BQ23: 243-5565 | BR23: 080950 | BS23: 1 | BT23: FTE
Q24: =SUM(B32+B68+J32+Y32+Y53+T23) -> 134 | R24: Employees | T24: =SUM(E32+E68+M32+AB32+AB53+T23) -> 94.2 | U24: FTE | AI24: =SUM(AI68+AI33+AI53+AQ33+AQ61+AL23+AQ25) -> 31 | AJ24: Employees | AL24: =SUM(AL68+AL33+AL53+AT33+AT61+AL23+AT25) -> 30.75 | AM24: FTE | AZ24: =SUM(BC23+AZ33+AZ40+AZ53) -> 8 | BA24: Employees | BC24: =SUM(BC23+BC33+BC40+BC53) -> 8 | BD24: FTE | BH24: =SUM(BH31+BH49+BK23) -> 8 | BI24: Employees | BK24: =SUM(BK31+BK23+BK49) -> 8 | BL24: FTE | BP24: =SUM(BH56+BP35+BP58+BP73+BS23+BP89+BP29) -> 24 | BQ24: Employees | BS24: =SUM(BS23+BS35+BS58+BS73+BS89+BK56+BS29) -> 20.85 | BT24: FTE
AQ25: =COUNT(AT21:AT24) -> 1 | AR25: Employee | AT25: =SUM(AT23:AT24) -> 1 | AU25: FTE
BP26: Project Accountant
BH27: Heating Plant | BP27: Maxwell, Julie | BR27: 081400 | BS27: 1 | BT27: FTE
B28: College of Technology | J28: Custodial Services | Y28: Custodial | AZ28: Administrative Assoc. II | BH28: Foreman
B29: Maintenance Supervisor III | J29: Supervisor | Y29: Custodial Supervisor I | AI29: Carpenters | AQ29: Plumbing & Machine Shop | BH29: Burke, Mike | BP29: =COUNT(BS25:BS28) -> 1 | BQ29: Employee | BS29: =SUM(BS27:BS28) -> 1 | BT29: FTE
B30: Kleinjan, Rick | J30: Mondloch, Jack | Y30: Lemer, Cary | AI30: Foreman | AQ30: Supervisor | AZ30: Griffin, Dena | BI30: 243-2190 | BJ30: 089000 | BK30: 1 | BL30: FTE
C31: 243-7838 | D31: 097870 | E31: 1 | F31: FTE | K31: 243-2161 | L31: 086910 | M31: 1 | N31: FTE | Z31: 243-5747 | AA31: 085400 | AB31: 1 | AC31: FTE | AI31: Gayvert, Art | AQ31: Grasso, John | AS31: 084380 | BA31: 243-6061 | BB31: 085000 | BC31: 1 | BD31: FTE | BH31: =SUM(BH42+BK30) -> 6 | BI31: Employees | BK31: =SUM(+BK42+BK30) -> 6 | BL31: FTE | BP31: Facilities Services Support
B32: =SUM(B60+B52+E31) -> 9 | C32: Employees | E32: =SUM(E31+E52+E60) -> 8.5 | F32: FTE | J32: =+J38+Q38+M31 -> 101 | K32: Employees | M32: =+M31+M38+T38 -> 65 | N32: FTE | Y32: =SUM(+AB31+Y41+Y46) -> 4 | Z32: Employees | AB32: =SUM(+AB46+AB41+AB31) -> 3.2 | AC32: FTE | AJ32: 243-6043 | AK32: 082920 | AL32: 1 | AM32: FTE | AR32: 243-6046 | AT32: 1 | AU32: FTE | BP32: Accounting Assoc IV
AI33: =SUM(AI44+AL32) -> 5 | AJ33: Employees | AL33: =SUM(+AL44+AL32) -> 5 | AM33: FTE | AQ33: =SUM(AQ42+AQ47+AT32+AQ53) -> 7 | AR33: Employees | AT33: =SUM(AT42+AT47+AT32+AT53) -> 6.75 | AU33: FTE | AZ33: =COUNT(BC30:BC32) -> 1 | BA33: Employee | BC33: =SUM(BC31:BC32) -> 1 | BD33: FTE | BP33: Kendall, Steve
BH34: Heating Plant Engineers | BQ34: 243-6121 | BR34: 084630 | BS34: 1 | BT34: FTE
B35: College of Technology | J35: Custodial Supervisor II | Q35: Custodial Supervisor II | BP35: =SUM(BP43+BP51+BS34) -> 7 | BQ35: Employees | BS35: =SUM(BS43+BS51+BS34) -> 7 | BT35: FTE
B36: Maintenance | J36: Ellingson, Lilia | Q36: Crosby, Dennis | AI36: Carpenters | AQ36: Plumbers | AZ36: Architecture & Drafting | BH36: Gibbs, Gerald | BJ36: 089300 | BK36: 1 | BL36: FTE
K37: 243-2161 | L37: 086920 | M37: 1 | N37: FTE | R37: 354-2162 | S37: 085300 | T37: 1 | U37: FTE | Y37: Wikum, Diane | AA37: 085700 | AB37: 0.75 | AC37: FTE | AZ37: Campus Architect | BH37: Hensell, Ben | BJ37: 089400 | BK37: 1 | BL37: FTE
B38: Full Time | J38: =+M37+J63+J70+J76+M75+J81+M80 -> 49 | K38: Employees | M38: =+M37+M63+M70+M75+M76+M80+M81 -> 32.2 | N38: FTE | Q38: =+T37+Q62+Q69+Q75+T74+Q80+T79 -> 51 | R38: Employees | T38: =+T37+T62+T69+T74+T75+T79+T80 -> 31.8 | U38: FTE | Y38: President's Residence/Prescott House | AI38: Dietrich, Steve | AK38: 082950 | AL38: 1 | AM38: FTE | AQ38: Batiuk, Hank | AS38: 084200 | AT38: 1 | AU38: FTE | AZ38: Chaudhry, Jameel | BH38: McGee, Dennis | BJ38: 089500 | BK38: 1 | BL38: FTE | BP38: Record Keeping Division
Y39: Vacant (v-Laitman) | AA39: 085490 | AB39: 1 | AC39: FTE | AI39: Overbaugh, Paul - Locksmith | AK39: 083000 | AL39: 1 | AM39: FTE | AQ39: Bitterman, Michael | AS39: 084350 | AT39: 1 | AU39: FTE | BA39: 243-5576 | BB39: 081310 | BC39: 1 | BD39: FTE | BH39: Robbins, James | BJ39: 089200 | BK39: 1 | BL39: FTE
B40: Dufresne, Jerry | D40: 097850 | E40: 1 | F40: FTE | J40: Custodial Crew | Q40: Custodial Crew | AI40: Tomicek, Ed | AK40: 082900 | AL40: 1 | AM40: FTE | AQ40: Hanson, Richard | AS40: 084440 | AT40: 1 | AU40: FTE | AZ40: =SUM(+AZ47+BC39) -> 2 | BA40: Employees | BC40: =SUM(BC47+BC39) -> 2 | BD40: FTE | BH40: Rowland, D. / Mnt Eng | BJ40: 089050 | BK40: 1 | BL40: FTE | BP40: Gibson, Patricia | BR40: 081630 | BS40: 1 | BT40: FTE
B41: Maintenance Worker III | Y41: =COUNT(AB37:AB39) -> 2 | Z41: Employees | AB41: =SUM(AB37:AB39) -> 1.75 | AC41: FTE | AI41: Tomicek, Eddie | AK41: 083050 | AL41: 1 | AM41: FTE | AQ41: Shields, John | AS41: 084360 | AT41: 1 | AU41: FTE | BP41: Walker, Dianne | BR41: 085010 | BS41: 1 | BT41: FTE
B42: Maul, Vernon | D42: 097880 | E42: 1 | F42: FTE | J42: Bartlett, Philip | L42: 085650 | M42: 1 | N42: FTE | Q42: Allen, Christopher | S42: 085350 | T42: 1 | U42: FTE | Y42: Permanent Part Time | AQ42: =COUNT(AT37:AT41) -> 4 | AR42: Employees | AT42: =SUM(AT38:AT41) -> 4 | AU42: FTE | AZ42: Architecture & Drafting | BH42: =COUNT(BK34:BK40) -> 5 | BI42: Employees | BK42: =SUM(BK36:BK40) -> 5 | BL42: FTE | BP42: Lake, Cassie | BR42: 081620 | BS42: 1 | BT42: FTE
B43: Maintenance Worker IV | J43: Carruthers, Bettina | L43: 116460 | M43: 1 | N43: FTE | Q43: Barnier, Cecil | S43: 085190 | T43: 1 | U43: FTE | BP43: =COUNT(BS40:BS42) -> 3 | BQ43: Employees | BS43: =SUM(BS40:BS42) -> 3 | BT43: FTE
B44: Nelson, Fred | D44: 097860 | E44: 1 | F44: FTE | J44: Castillo, Andrea | L44: 086030 | M44: 1 | N44: FTE | Q44: Bordell, Charles | S44: 085450 | T44: 1 | U44: FTE | Y44: Corrigan, Maureen | AA44: 081410 | AB44: 0.45 | AC44: FTE | AI44: =COUNT(AL37:AL42) -> 4 | AJ44: Employees | AL44: =SUM(AL37:AL42) -> 4 | AM44: FTE | AQ44: Permanent Part-time | AZ44: Evanger, Brad | BB44: 081650 | BC44: 1 | BD44: FTE
B45: Maintenance Worker III | J45: Crosby, Aaron | L45: 085180 | M45: 1 | N45: FTE | Q45: Conway, Darrell | S45: 085510 | T45: 1 | U45: FTE | AZ45: Facilities Analyst | BH45: Engineering & Utilities
B46: Rodda, William | D46: 097920 | E46: 1 | F46: FTE | J46: Daniels, Alan | L46: 086230 | M46: 1 | N46: FTE | Q46: Conway, Lee | S46: 085230 | T46: 1 | U46: FTE | Y46: =COUNT(AB44:AB45) -> 1 | Z46: Part Time | AB46: =SUM(AB44:AB45) -> 0.45 | AC46: FTE | AQ46: Avery, Raymond | AS46: 087110 | AT46: 0.75 | AU46: FTE | BH46: Mechanical Engineer | BP46: Campus Stores
B47: Maintenance Worker IV | J47: Daniels, Lois | L47: 085220 | M47: 1 | N47: FTE | Q47: Crowley, David | S47: 086940 | T47: 1 | U47: FTE | AQ47: =COUNT(AT45:AT46) -> 1 | AR47: Employees | AT47: =SUM(AT45:AT46) -> 0.75 | AU47: FTE | AZ47: =COUNT(BC44:BC46) -> 1 | BA47: Employees | BC47: =SUM(BC43:BC46) -> 1 | BD47: FTE | BH47: Zimmerman, Alex
B48: Feichtinger, Christoph | D48: 097930 | E48: 1 | F48: FTE | J48: Davis, Richard | L48: 085900 | M48: 1 | N48: FTE | Q48: Davis, Bruce | S48: 116470 | T48: 1 | U48: FTE | BI48: 243-2144 | BJ48: 910020 | BK48: 1 | BL48: FTE | BP48: Britton, Jolene | BR48: 484450 | BS48: 1 | BT48: FTE
B49: Maintenance Worker I | J49: Dubois, Morgan | L49: 085270 | M49: 1 | N49: FTE | Q49: Halcomb, Laurie | S49: 085480 | T49: 1 | U49: FTE | Y49: Grounds | AI49: Painters | AZ49: Construction Management | BH49: =COUNT(BK41:BK47) -> 1 | BI49: Employees | BK49: =BK48 -> 1 | BL49: FTE | BP49: Morgan, Shawn | BR49: 084550 | BS49: 1 | BT49: FTE
B50: Yackley, Steve | D50: 097890 | E50: 1 | F50: FTE | J50: Huber, Mike | L50: 086220 | M50: 1 | N50: FTE | Q50: Harrison, Gail | S50: 116490 | T50: 1 | U50: FTE | Y50: Supervisor I | AI50: Foreman | AQ50: Machine Shop | AZ50: Senior Project Manager | BP50: Thompson, Patti | BR50: 085020 | BS50: 1 | BT50: FTE
B51: Maintenance Worker I | J51: Lawson, David | L51: 085280 | M51: 1 | N51: FTE | Q51: Hayes, Steven | S51: 086300 | T51: 1 | U51: FTE | Y51: Chaffee, Rich | AI51: Barba, John | AZ51: Mulkey, Alan | BB51: 081660 | BC51: 1 | BD51: FTE | BP51: =COUNT(BS47:BS50) -> 3 | BQ51: Employees | BS51: =SUM(BS47:BS50) -> 3 | BT51: FTE
B52: =COUNT(E40:E50) -> 6 | C52: Full Time | E52: =SUM(E40:E50) -> 6 | F52: FTE | J52: Lorenz, Gary | L52: 085460 | M52: 1 | N52: FTE | Q52: Hoerner, Gaylen | S52: 085250 | T52: 1 | U52: FTE | Z52: 243-2183 | AA52: 087300 | AB52: 1 | AC52: FTE | AJ52: 243-6043 | AK52: 083900 | AL52: 1 | AM52: FTE | AQ52: Alvernaz, Mike | AS52: 083700 | AT52: 1 | AU52: FTE | BA52: 243-6103 | BH52: Mail Service
B53: Part Time | J53: Manweiler, Christina | L53: 085260 | M53: 1 | N53: FTE | Q53: Hubbard, Brianna | S53: 085310 | T53: 1 | U53: FTE | Y53: =SUM(Y65+Y73+Y79+AB52) -> 12 | Z53: Employees | AB53: =SUM(AB65+AB73+AB79+AB52) -> 10.2 | AC53: FTE | AI53: =SUM(AI61+AL52) -> 3 | AJ53: Employees | AL53: =SUM(AL61+AL52) -> 3 | AM53: FTE | AQ53: =+AT52 -> 1 | AR53: Employees | AT53: =+AT52 -> 1 | AU53: FTE | AZ53: =SUM(AZ65+BC51) -> 4 | BA53: Employees | BC53: =SUM(BC65+BC51) -> 4 | BD53: FTE | BH53: Manager
J54: Morgenthaler, Greg | L54: 086200 | M54: 1 | N54: FTE | Q54: Lewis, Curtis | S54: 116480 | T54: 1 | U54: FTE | BH54: Clark, Dan | BP54: Computer Maintenance
B55: Vickery, Jesse | D55: 097900 | E55: 0.75 | F55: FTE | J55: Novakovitch, Joe | L55: 085600 | M55: 1 | N55: FTE | Q55: Merritt, Russell | S55: 086960 | T55: 1 | U55: FTE | AI55: Painters | AZ55: Project Managers | BI55: 243-2272 | BJ55: 088700 | BK55: 1 | BL55: FTE | BP55: Programmer/Analyst
B56: Maintenance Worker I | J56: Perras, Gregory | L56: 086970 | M56: 1 | N56: FTE | Q56: Pennington, Larry | S56: 086000 | T56: 1 | U56: FTE | Y56: Full Time Groundskeepers | BH56: =SUM(+BK55+BH67+BH76+BH81) -> 9 | BI56: Employees | BK56: =SUM(+BK55+BK67+BK76+BK81) -> 5.85 | BL56: FTE | BP56: Collins, Brad
B57: Murphy, Casey | D57: 097910 | E57: 0.75 | F57: FTE | J57: Santos, Doug | L57: 086930 | M57: 1 | N57: FTE | Q57: Price, Gerald | S57: 085290 | T57: 1 | U57: FTE | AI57: Federici, Rudy | AK57: 083800 | AL57: 1 | AM57: FTE | AQ57: Technical Services | AZ57: Ballas, Jerry | BB57: 910020 | BC57: 1 | BD57: FTE | BQ57: 243-4506 | BR57: 081350 | BS57: 1 | BT57: FTE
B58: Maintenance Worker I | J58: Smith, Charles | L58: 086980 | M58: 1 | N58: FTE | Q58: Sanders, Jason | S58: 116500 | T58: 1 | U58: FTE | Y58: Avery, Michael | AA58: 087080 | AB58: 1 | AC58: FTE | AI58: Hemphill, Bill | AK58: 084050 | AL58: 1 | AM58: FTE | AQ58: Supervisor | AZ58: Project Manager - External Funding | BP58: =SUM(+BS57+BP66) -> 2 | BQ58: Employees | BS58: =SUM(+BS57+BS66) -> 2 | BT58: FTE
J59: Stevens, Glen | L59: 086600 | M59: 1 | N59: FTE | Q59: Satterfield, Todd | S59: 085210 | T59: 1 | U59: FTE | Y59: Fryberger, Mark | AA59: 087200 | AB59: 1 | AC59: FTE | AQ59: Hardwick, Dennis | BH59: Mail Clerks
B60: =COUNT(E55:E57) -> 2 | C60: Part Time | E60: =SUM(E55:E57) -> 1.5 | F60: FTE | J60: Tiffany, Tanya | L60: 085320 | M60: 1 | N60: FTE | Q60: Schindler, David | S60: 085470 | T60: 1 | U60: FTE | Y60: Mistrick, Roberta | AA60: 087040 | AB60: 1 | AC60: FTE | AR60: 243-6050 | AS60: 084400 | AT60: 1 | AU60: FTE | AZ60: Panisko, Mike | BB60: 910020 | BC60: 1 | BD60: FTE
J61: Vacant (V-Logan) | L61: 086010 | M61: 1 | N61: FTE | Q61: Vacant (v-Snyder) | S61: 085410 | T61: 1 | U61: FTE | Y61: Potter, Gregg | AA61: 087010 | AB61: 1 | AC61: FTE | AI61: =COUNT(AL57:AL58:AL59) -> 2 | AJ61: Employees | AL61: =SUM(AL57:AL58:AL59) -> 2 | AM61: FTE | AQ61: =SUM(AQ78+AT60) -> 7 | AR61: Employees | AT61: =SUM(AT78+AT60) -> 7 | AU61: FTE | AZ61: Project Manager (.20 External Funding) | BH61: Full Time | BP61: Computer Support
J62: Varner, Kenneth | L62: 085200 | M62: 1 | N62: FTE | Q62: =COUNT(T42:T61) -> 20 | R62: Employees | T62: =SUM(T42:T61) -> 20 | U62: FTE | Y62: Rollins, Michael | AA62: 087100 | AB62: 1 | AC62: FTE | BH62: Spencer, Richard | BJ62: 088900 | BK62: 1 | BL62: FTE
J63: =COUNT(M42:M61) -> 20 | K63: Employees | M63: =SUM(M42:M62) -> 21 | N63: FTE | Y63: Stacey, Bradley | AA63: 087090 | AB63: 1 | AC63: FTE | AZ63: Plantz, Greg | BB63: 910020 | BC63: 1 | BD63: FTE | BH63: Lead Worker | BP63: Vacant | BR63: 081330 | BS63: 1 | BT63: FTE
B64: Labor Crew | Q64: Permanent Part Time (on call) | AI64: Electricians | AQ64: HVAC Shop | AZ64: Project Manager - Asbestos | BH64: Murphey, Colleen | BJ64: 088500 | BK64: 1 | BL64: FTE | BP64: Information System Specialist
B65: Foreman | J65: Permanent Part Time (on call) | Y65: =COUNT(AB56:AB64) -> 6 | Z65: Full Time | AB65: =SUM(AB58:AB63) -> 6 | AC65: FTE | AI65: Foreman | AZ65: =COUNT(BC57:BC64) -> 3 | BA65: Employees | BC65: =SUM(BC57:BC64) -> 3 | BD65: FTE | BH65: Scott, Ed | BJ65: 088550 | BK65: 1 | BL65: FTE
B66: Alva, Fidel "Mick" | Q66: Magstadt, Melissa | S66: 085330 | T66: 0.5 | U66: FTE | Y66: Permanent Seasonal Groundskeepers | AI66: Olson, Paul | AQ66: Goodrich, Dean | AS66: 084310 | AT66: 1 | AU66: FTE | BP66: =COUNT(BS62:BS65) -> 1 | BQ66: Employee | BS66: =SUM(BS62:BS64) -> 1 | BT66: FTE
C67: 243-6042 | D67: 087900 | E67: 1 | F67: FTE | J67: Holloway, Gary | L67: 086250 | M67: 0.5 | N67: FTE | Q67: Magstadt, Steve | S67: 085240 | T67: 0.5 | U67: FTE | AJ67: 243-6045 | AK67: 083200 | AL67: 1 | AM67: FTE | AQ67: Refrig. Tech/Plumber | BH67: =COUNT(BK61:BK66) -> 3 | BI67: Employees | BK67: =SUM(BK62:BK65) -> 3 | BL67: FTE
B68: =SUM(B89+B84+E67) -> 7 | C68: Employees | E68: =SUM(E67+E84+E89) -> 6.3 | F68: FTE | J68: Shull, Bob | L68: 085170 | M68: 0.5 | N68: FTE | Y68: Coe, Christopher | AA68: 087030 | AB68: 0.75 | AC68: FTE | AI68: =SUM(AI80+AL67) -> 7 | AJ68: Employees | AL68: =SUM(AL80+AL67) -> 7 | AM68: FTE | AQ68: Vacant | AS68: 084340 | AT68: 1 | AU68: FTE
Q69: =COUNT(T65:T68) -> 2 | R69: Part Time | T69: =SUM(T65:T67) -> 1 | U69: FTE | Y69: Csorosz, Kristine | AA69: 087020 | AB69: 0.75 | AC69: FTE | AQ69: Refrig. Tech/Plumber | BH69: Permanent Part-Time | BP69: Vehicle Repair
J70: =COUNT(M67:M68) -> 2 | K70: Part Time | M70: =SUM(M67:M68) -> 1 | N70: FTE | Y70: Harrington, Justin | AA70: 087050 | AB70: 0.5 | AC70: FTE | AQ70: Otis, Don | AS70: 084250 | AT70: 1 | AU70: FTE | BP70: Foreman
B71: Full Time | Y71: Wilson, Donald | AA71: 087000 | AB71: 0.75 | AC71: FTE | AI71: Electricians | AQ71: Refrig. Tech/Plumber | BH71: Lester, Vickie | BJ71: 088350 | BK71: 0.15 | BL71: FTE | BP71: Peterson, Bob
Q72: Student Custodial Supervisor I | AQ72: Gray, William | AS72: 084320 | AT72: 1 | AU72: FTE | BH72: Stephens, Rick (on call) | BJ72: 088420 | BK72: 0.3 | BL72: FTE | BQ72: 243-6580 | BR72: 114750 | BS72: 1 | BT72: FTE
B73: Brown, Jeff | D73: 087800 | E73: 1 | F73: FTE | J73: Student Custodial Supervisor I | Y73: =COUNT(AB67:AB71) -> 4 | Z73: Part Time | AB73: =SUM(AB68:AB71) -> 2.75 | AC73: FTE | AI73: Coyne, Jim | AK73: 083400 | AL73: 1 | AM73: FTE | AQ73: Refrig. Tech/Plumber | BH73: Thomas, John (on call) | BJ73: 088450 | BK73: 0.2 | BL73: FTE | BP73: =SUM(+BS72+BP82) -> 3 | BQ73: Employees | BS73: =SUM(+BS72+BS82) -> 3 | BT73: FTE
B74: Equipment Operator | Q74: Lamar, Romas | S74: 086100 | T74: 1 | U74: FTE | AI74: Harrison, Michael | AK74: 083280 | AL74: 1 | AM74: FTE | AQ74: McCoy, Bill | AS74: 087910 | AT74: 1 | AU74: FTE | BH74: Kopp, Doug (on call) | BJ74: 088400 | BK74: 0.2 | BL74: FTE
B75: Vervanac, James | D75: 087720 | E75: 1 | F75: FTE | J75: Pigman, John | L75: 086400 | M75: 1 | N75: FTE | Q75: 13 | R75: Temp/Students | T75: =ROUND(+Q75/3.33,2) -> 3.9 | U75: FTE | Y75: Permanent Part Time | AI75: Morlock, Chuck | AK75: 083250 | AL75: 1 | AM75: FTE | AQ75: Insulation Tech.
B76: Equipment Operator | J76: 12 | K76: Temp/Students | M76: =ROUND(+J76/3.33,2) -> 3.6 | N76: FTE | AI76: O'Rourke, Malcom | AK76: 083320 | AL76: 1 | AM76: FTE | AQ76: Olson, Christine | AS76: 081130 | AT76: 1 | AU76: FTE | BH76: =COUNT(BK71:BK74) -> 4 | BI76: Employees | BK76: =SUM(BK71:BK74) -> 0.85 | BL76: FTE | BP76: Garage / Motor Pool
B77: Horne, Donald | D77: 087400 | E77: 1 | F77: FTE | Q77: Student Custodial Supervisor I | Y77: Fornall, Brian | AA77: 087070 | AB77: 0.45 | AC77: FTE | AI77: Schaefer, Devin | AK77: 083270 | AL77: 1 | AM77: FTE | AQ77: Insulation Tech Lead Worker
B78: Equipment Operator | J78: Student Custodial Supervisor I | AI78: Morris, Stacy | AK78: 083300 | AL78: 1 | AM78: FTE | AQ78: =COUNT(AT64:AT77) -> 6 | AR78: Employees | AT78: =SUM(AT66:AT77) -> 6 | AU78: FTE | BH78: Central Receiving Clerk | BP78: Gilbertson, Carl | BR78: 114650 | BS78: 1 | BT78: FTE
B79: Beaty, Steve | D79: 087700 | E79: 1 | F79: FTE | Q79: Magstadt, Toby | S79: 086950 | T79: 1 | U79: FTE | Y79: =COUNT(AB77:AB78) -> 1 | Z79: Part Time | AB79: =SUM(AB77:AB78) -> 0.45 | AC79: FTE | BP79: Equip. Mechanic
B80: Equipment Operator | J80: Lipnickey, Brad | L80: 086800 | M80: 1 | N80: FTE | Q80: 13 | R80: Temp/Students | T80: =ROUND(+Q80/3.33,2) -> 3.9 | U80: FTE | AI80: =COUNT(AL72:AL79) -> 6 | AJ80: Employees | AL80: =SUM(AL73:AL78) -> 6 | AM80: FTE | BH80: Hardin, Ben | BJ80: 002110 | BK80: 1 | BL80: FTE | BP80: Schmidt, Curtis | BR80: 114600 | BS80: 1 | BT80: FTE
B81: Schmitt, William | D81: 487600 | E81: 1 | F81: FTE | J81: 12 | K81: Temp/Students | M81: =ROUND(+J81/3.33,2) -> 3.6 | N81: FTE | BH81: =COUNT(BK80) -> 1 | BI81: Employee | BK81: =SUM(BK80) -> 1 | BL81: FTE | BP81: Equip. Mechanic
B82: Maintenance Worker | BP82: =COUNT(BS78:BS80) -> 2 | BQ82: Employees | BS82: =SUM(BS78:BS81) -> 2 | BT82: FTE
Y83: Sustainability & Recycling | AI83: Recycling
B84: =COUNT(E71:E81) -> 5 | C84: Full Time | E84: =SUM(E73:E81) -> 5 | F84: FTE | Y84: Sustainability Coordinator | AI84: Recycling Coordinator
B85: Permanent Part Time | Y85: Peacock, Cherie | AA85: New | AB85: 1 | AC85: FTE | AI85: Stan, Eduard | AK85: 081360 | AL85: 1 | AM85: FTE | BP85: Transportation Services/Motor Pool
B87: Wandler, Don | D87: 487620 | E87: 0.3 | F87: FTE | Y87: =+Y92+AB85+AI87 -> 11 | Z87: Employees | AB87: =+AB85+AB92+AL87 -> 4.95 | AC87: FTE | AI87: =+AI89+AL85 -> 8 | AJ87: Employees | AL87: =+AL85+AL89 -> 3.1 | AM87: FTE | BP87: Sharp, Michael | BR87: 114700 | BS87: 1 | BT87: FTE
AI88: Student Recycling
B89: =COUNT(E87:E87) -> 1 | C89: Part Time | E89: =SUM(E87:E87) -> 0.3 | F89: FTE | Y89: Student Interns | AI89: 7 | AJ89: Students/Temp. | AL89: =ROUND(+AI89/3.33,2) -> 2.1 | AM89: FTE | BP89: =COUNT(BS85:BS88) -> 1 | BQ89: Employee | BS89: =SUM(BS87:BS88) -> 1 | BT89: FTE
Y90: ASUM Intern | AB90: 0.35 | AC90: FTE
Y91: Facilities Services Intern | AB91: 0.5 | AC91: FTE
Y92: =COUNT(AB90:AB91) -> 2 | Z92: Student Interns | AB92: =SUM(AB90:AB91) -> 0.85 | AC92: FTE
